fUSD/lending_fUSD_20241118
["ID","MTS","AMOUNT","RATE_DAILY","PERIOD"]
[342495313,1731928238931,-500.0,9.997e-05,2]
[342495315,1731928238947,-500.0,9.997e-05,2]
[342495317,1731928238957,-686.85,9.997e-05,2]
[342495319,1731928238967,-500.0,9.997e-05,2]
[342495321,1731928238978,-1493.09,9.997e-05,2]
[342495323,1731928238988,-519.94,9.997e-05,2]
[342495325,1731928238998,-1191.21,9.997e-05,2]
[342495327,1731928239007,-631.6462714,9.998e-05,2]
[342495329,1731928239017,-500.0,9.998e-05,2]
[342495331,1731928239026,-500.0,9.998e-05,2]
[342495333,1731928239036,-253.66,9.998e-05,2]
[342495335,1731928239045,-500.0,9.998e-05,2]
[342495337,1731928239054,-686.85,9.998e-05,2]
[342495339,1731928239064,-500.0,9.998e-05,2]
[342495341,1731928239073,-500.0,9.998e-05,2]
[342495344,1731928239082,-5990.09,9.998e-05,2]
[342495346,1731928239091,-1270.92,9.998e-05,2]
[342495348,1731928239101,-223.34046616,9.999e-05,2]
[342495350,1731928239110,-686.85,9.999e-05,2]
[342495352,1731928239119,-686.85,9.999e-05,2]
[342495354,1731928239129,-686.85,9.999e-05,2]
[342495355,1731928239139,-686.85,9.999e-05,2]
[342495356,1731928239149,-686.85,9.999e-05,2]
[342495358,1731928239159,-686.85,9.999e-05,2]
[342495360,1731928239169,-686.85,9.999e-05,2]
[342495361,1731928239178,-686.85,9.999e-05,2]
[342495362,1731928239188,-686.85,9.999e-05,2]
[342495363,1731928239203,-686.97,9.999e-05,2]
[342495364,1731928239212,-500.0,9.999e-05,2]
[342495366,1731928239222,-292.74,9.999e-05,2]
[342495367,1731928239231,-1493.09,9.999e-05,2]
[342495369,1731928239240,-1493.09,9.999e-05,2]
[342495370,1731928239250,-1493.09,9.999e-05,2]
[342495371,1731928239259,-1493.09,9.999e-05,2]
[342495372,1731928239269,-1493.09,9.999e-05,2]
[342495373,1731928239278,-1493.09,9.999e-05,2]
[342495374,1731928239287,-1493.09,9.999e-05,2]
[342495375,1731928239296,-1493.09,9.999e-05,2]
[342495376,1731928239306,-1493.09,9.999e-05,2]
[342495377,1731928239315,-1493.32012876,9.999e-05,2]
[342495378,1731928239325,-500.0,9.999e-05,2]
[342495379,1731928239334,-500.0,9.999e-05,2]
[342495380,1731928239343,-500.0,9.999e-05,2]
[342495381,1731928239353,-500.0,9.999e-05,2]
[342495382,1731928239363,-500.0,9.999e-05,2]
[342495383,1731928239373,-500.0,9.999e-05,2]
[342495384,1731928239383,-500.0,9.999e-05,2]
[342495385,1731928239392,-500.0,9.999e-05,2]
[342495386,1731928239401,-448.00901612,9.999e-05,2]
[342495387,1731928239411,-472.25287758,9.999e-05,2]
[342495388,1731928239421,-5990.09,9.999e-05,2]
[342495389,1731928239431,-5990.09,9.999e-05,2]
[342495390,1731928239443,-5990.09,9.999e-05,2]
[342495391,1731928239453,-5990.09,9.999e-05,2]
[342495392,1731928239462,-5990.09,9.999e-05,2]
[342495393,1731928239472,-5990.09,9.999e-05,2]
[342495394,1731928239482,-5990.09,9.999e-05,2]
[342495395,1731928239491,-5990.09,9.999e-05,2]
[342495396,1731928239500,-5990.20926294,9.999e-05,2]
[342495397,1731928239510,-1270.92,9.999e-05,2]
[342495398,1731928239519,-1270.92,9.999e-05,2]
[342495399,1731928239528,-1270.92,9.999e-05,2]
[342495400,1731928239538,-1270.92,9.999e-05,2]
[342495401,1731928239547,-1270.92,9.999e-05,2]
[342495402,1731928239556,-1270.92,9.999e-05,2]
[342495403,1731928239565,-1270.92,9.999e-05,2]
[342495404,1731928239574,-1270.92,9.999e-05,2]
[342495405,1731928239583,-1270.99,9.999e-05,2]
[342495406,1731928239593,-13778.80709059,9.999e-05,2]
[342495407,1731928239603,-186.32149877,9.999e-05,2]
[342495408,1731928239612,-1191.21,9.999e-05,2]
[342495409,1731928239621,-1191.21,9.999e-05,2]
[342495410,1731928239631,-1191.21,9.999e-05,2]
[342495411,1731928239640,-1191.21,9.999e-05,2]
[342495412,1731928239650,-1191.21,9.999e-05,2]
[342495413,1731928239660,-1191.21,9.999e-05,2]
[342495414,1731928239669,-1191.21,9.999e-05,2]
[342495415,1731928239679,-1191.21,9.999e-05,2]
[342495416,1731928239693,-1191.21,9.999e-05,2]
[342495417,1731928239703,-1191.31000001,9.999e-05,2]
[342495418,1731928239713,-13778.80709058,0.0001,2]
[342495419,1731928239723,-458031.94762839,0.0001,2]
[342495420,1731928239752,-275.1,0.0001,2]
[342495421,1731928239764,-9755.49649749,0.0001,2]
[342495422,1731928239776,-24535.83887542,0.0001,2]
[342495423,1731928239788,-3919.42510852,0.0001,2]
[342495424,1731928239799,-2273.80995153,0.0001,2]
[342495425,1731928239810,-3761.3088814,0.0001,2]
[342495426,1731928240265,-993.32399226,0.0001,2]
[342495427,1731928240278,-198244.7296725,0.0001,2]
[342495428,1731928240289,-3665.19093004,0.0001,2]
[342495429,1731928240300,-13045.7451443,0.0001,2]
[342495430,1731928240311,-397.75232,0.0001,2]
[342495431,1731928240371,-47570.49896685,0.0001,2]
[342495432,1731928240478,-6450.0,0.0001,2]
[342495433,1731928240489,-1302.16514,0.0001,2]
[342495434,1731928240501,-416.8375,0.0001,2]
[342495458,1731928243169,-1829.96,0.0001,2]
[342495459,1731928243180,-1829.38201413,0.0001,2]
[342495460,1731928243193,-5792.38774302,0.0001,2]
[342495461,1731928243204,-2946.741287,0.0001,2]
[342495462,1731928243215,-1794.086456,0.0001,2]
[342495463,1731928243226,-3468.41520523,0.0001,2]
[342495464,1731928243237,-3281.30381835,0.0001,2]
[342495465,1731928243264,-6352.88437842,0.0001,2]
[342495466,1731928243275,-4576.32909402,0.0001,2]
[342495467,1731928243286,-5452.94823256,0.0001,2]
[342495468,1731928243297,-18379.40000003,0.0001,2]
[342495469,1731928243315,-27240.78823955,0.0001,2]
[342495470,1731928243382,-1814.41885655,0.0001,2]
[342495471,1731928243451,-1679.73444342,0.0001,2]
[342495484,1731928246245,-12618.24597748,0.0001,2]
[342495520,1731928246618,-223.34046616,9.899e-05,2]
[342495522,1731928246628,-32046.60569033,0.0001,2]
[342495524,1731928246640,-404.3437958,0.0001,2]
[342495526,1731928246651,-7930.0,0.0001,2]
[342495542,1731928246776,-4585.5,0.0001,2]
[342495544,1731928246787,-605.24653016,0.0001,2]
[342495549,1731928280946,500.0,8.22e-05,2]
[342495550,1731928296677,50000.0,0.0001,3]
[342495555,1731928367167,8174.0,8.502e-05,2]
[342495556,1731928375865,14870.99,8.443e-05,2]
[342495558,1731928416765,381.75726134,0.0001,3]
[342495559,1731928490768,166.75,8.481e-05,2]
[342495560,1731928501520,2233.38,8.219e-05,2]
[342495562,1731928566510,157.33,0.0002277,120]
[342495565,1731928742689,500.0,0.0001,3]
[342495568,1731928845382,150.0,0.0001,3]
[342495579,1731929322379,2121.71,8.219e-05,2]
[342495628,1731929431729,367901.20734041,9.993e-05,3]
[342495629,1731929434874,-250.0,8.961e-05,2]
[342495630,1731929434885,-1000.0,8.988e-05,2]
[342495631,1731929434894,-252.41,8.995e-05,2]
[342495632,1731929434904,-1528.82,9.001e-05,2]
[342495633,1731929434914,-1000.0,9.056e-05,2]
[342495634,1731929434924,-250.0,9.075e-05,2]
[342495635,1731929434934,-188.7,9.092e-05,2]
[342495636,1731929434944,-279.918,9.462e-05,2]
[342495637,1731929434953,-180.31,9.51e-05,2]
[342495638,1731929434963,-500.0,9.59e-05,2]
[342495639,1731929434972,-200.0,9.6e-05,2]
[342495640,1731929434982,-81.47449715,9.662e-05,2]
[342495641,1731929434994,-418.52550285,9.662e-05,2]
[342495642,1731929435003,-500.0,9.662e-05,2]
[342495643,1731929435012,-300.0,9.798e-05,2]
[342495644,1731929435022,-60.86451715,9.799e-05,2]
[342495645,1731929435033,-2817.87168285,9.799e-05,2]
[342495646,1731929435042,-2869.618,9.799e-05,2]
[342495647,1731929435051,-500.0,9.898e-05,2]
[342495648,1731929435060,-500.0,9.898e-05,2]
[342495649,1731929435072,-500.0,9.898e-05,2]
[342495650,1731929435082,-500.0,9.898e-05,2]
[342495651,1731929435091,-1000.0,9.899e-05,2]
[342495652,1731929435100,-150.0,9.899e-05,2]
[342495653,1731929435110,-281.11031715,9.9e-05,2]
[342495654,1731929435121,-5681.71986593,9.9e-05,2]
[342495655,1731929435201,-14617.13804751,9.9e-05,2]
[342495656,1731929435213,-1221.87501474,9.9e-05,2]
[342495658,1731929435224,-757.70112046,9.9e-05,2]
[342495660,1731929435240,-1978.74,9.9e-05,2]
[342495662,1731929435251,-9036.06293863,9.9e-05,2]
[342495664,1731929435261,-3122.7333,9.9e-05,2]
[342495666,1731929435271,-348.10149437,9.952e-05,2]
[342495668,1731929435284,-200.0,9.964e-05,2]
[342495670,1731929435293,-348.10149437,9.967e-05,2]
[342495672,1731929435303,-200.0,9.972e-05,2]
[342495673,1731929435312,-500.0,9.973e-05,2]
[342495675,1731929435324,-202.97744091,9.973e-05,2]
[342495677,1731929435333,-348.10149437,9.975e-05,2]
[342495678,1731929435343,-348.10149437,9.98e-05,2]
[342495679,1731929435352,-4739.69161739,9.98e-05,2]
[342495680,1731929435362,-1067.812,9.983e-05,2]
[342495681,1731929435372,-223.072,9.983e-05,2]
[342495682,1731929435381,-200.0,9.987e-05,2]
[342495683,1731929435390,-4447476.13592193,9.993e-05,3]
[342495684,1731929435402,-2299.99999766,9.993e-05,3]
[342495685,1731929435413,-1950.000006,9.993e-05,3]
[342495686,1731929435432,-146638.35701251,9.993e-05,3]
[342495687,1731929435441,-500.0,9.994e-05,2]
[342495688,1731929435450,-500.0,9.994e-05,2]
[342495689,1731929435459,-500.0,9.994e-05,2]
[342495690,1731929435468,-500.0,9.994e-05,2]
[342495691,1731929435477,-500.0,9.994e-05,2]
[342495692,1731929435486,-500.0,9.994e-05,2]
[342495693,1731929435495,-500.0,9.994e-05,2]
[342495694,1731929435504,-500.0,9.994e-05,2]
[342495695,1731929435514,-500.0,9.994e-05,2]
[342495696,1731929435523,-500.0,9.994e-05,2]
[342495697,1731929435534,-500.0,9.994e-05,2]
[342495698,1731929435544,-448.00901612,9.994e-05,2]
[342495699,1731929435553,-553.06776881,9.994e-05,2]
[342495700,1731929435562,-500.0,9.994e-05,2]
[342495701,1731929435573,-500.0,9.994e-05,2]
[342495702,1731929435583,-500.0,9.994e-05,2]
[342495703,1731929435591,-472.25287758,9.994e-05,2]
[342495704,1731929435601,-2995.04,9.994e-05,2]
[342495705,1731929435610,-2995.04,9.994e-05,2]
[342495706,1731929435620,-2995.04,9.994e-05,2]
[342495707,1731929435630,-2995.04,9.994e-05,2]
[342495708,1731929435640,-2995.04,9.994e-05,2]
[342495709,1731929435649,-2995.04,9.994e-05,2]
[342495710,1731929435658,-2995.04,9.994e-05,2]
[342495711,1731929435668,-2995.04,9.994e-05,2]
[342495712,1731929435677,-2995.04,9.994e-05,2]
[342495713,1731929435686,-2995.04,9.994e-05,2]
[342495714,1731929435696,-2995.04,9.994e-05,2]
[342495715,1731929435705,-2995.04,9.994e-05,2]
[342495716,1731929435714,-3754.65,9.994e-05,2]
[342495717,1731929435723,-2995.04,9.994e-05,2]
[342495718,1731929435732,-3754.65,9.994e-05,2]
[342495719,1731929435751,-2995.04,9.994e-05,2]
[342495720,1731929435762,-3754.65,9.994e-05,2]
[342495721,1731929435772,-2995.04,9.994e-05,2]
[342495722,1731929435782,-3754.65,9.994e-05,2]
[342495723,1731929435792,-2995.04,9.994e-05,2]
[342495724,1731929435802,-2995.04,9.994e-05,2]
[342495725,1731929435812,-3754.65,9.994e-05,2]
[342495726,1731929435824,-2995.04,9.994e-05,2]
[342495727,1731929435834,-3754.65,9.994e-05,2]
[342495728,1731929435844,-2995.04,9.994e-05,2]
[342495729,1731929435854,-3754.65,9.994e-05,2]
[342495730,1731929435864,-3754.65,9.994e-05,2]
[342495731,1731929435874,-3754.65,9.994e-05,2]
[342495732,1731929435884,-3754.65,9.994e-05,2]
[342495733,1731929435893,-3754.65,9.994e-05,2]
[342495734,1731929435903,-3754.65,9.994e-05,2]
[342495735,1731929435912,-3754.65,9.994e-05,2]
[342495736,1731929435921,-3754.65,9.994e-05,2]
[342495737,1731929435931,-3754.65,9.994e-05,2]
[342495738,1731929435941,-3754.65,9.994e-05,2]
[342495739,1731929435950,-3754.65,9.994e-05,2]
[342495740,1731929435959,-3754.65,9.994e-05,2]
[342495741,1731929435969,-3754.65,9.994e-05,2]
[342495742,1731929435978,-580.04,9.994e-05,2]
[342495743,1731929435987,-200.0,9.996e-05,2]
[342495744,1731929435996,-348.10149437,9.997e-05,2]
[342495745,1731929436006,-2995.04,9.998e-05,2]
[342495746,1731929436015,-2995.04,9.998e-05,2]
[342495747,1731929436024,-2995.04,9.998e-05,2]
[342495748,1731929436034,-2995.04,9.998e-05,2]
[342495749,1731929436043,-2995.27926294,9.998e-05,2]
[342495750,1731929436052,-3754.65,9.998e-05,2]
[342495751,1731929436061,-3754.65,9.998e-05,2]
[342495752,1731929436073,-3754.65,9.998e-05,2]
[342495753,1731929436082,-3754.65,9.998e-05,2]
[342495754,1731929436092,-3754.84423765,9.998e-05,2]
[342495755,1731929436101,-500.0,9.998e-05,2]
[342495756,1731929436111,-500.0,9.998e-05,2]
[342495757,1731929436120,-500.0,9.999e-05,2]
[342495758,1731929436130,-500.0,9.999e-05,2]
[342495759,1731929436139,-500.0,9.999e-05,2]
[342495760,1731929436149,-500.0,9.999e-05,2]
[342495761,1731929436158,-500.0,9.999e-05,2]
[342495762,1731929436167,-500.0,9.999e-05,2]
[342495763,1731929436177,-500.0,9.999e-05,2]
[342495764,1731929436187,-500.0,9.999e-05,2]
[342495765,1731929436198,-500.0,9.999e-05,2]
[342495766,1731929436208,-500.0,9.999e-05,2]
[342495767,1731929436219,-500.0,9.999e-05,2]
[342495768,1731929436228,-500.0,9.999e-05,2]
[342495769,1731929436237,-500.0,9.999e-05,2]
[342495770,1731929436246,-508.68,9.999e-05,2]
[342495771,1731929436255,-500.0,9.999e-05,2]
[342495772,1731929436265,-371.94408724,9.999e-05,2]
[342495773,1731929436274,-500.0,9.999e-05,2]
[342495774,1731929436283,-1500.0,9.999e-05,2]
[342495775,1731929436296,-500.0,9.999e-05,2]
[342495776,1731929436305,-500.0,9.999e-05,2]
[342495777,1731929436314,-500.0,9.999e-05,2]
[342495778,1731929436326,-500.0,9.999e-05,2]
[342495779,1731929436337,-500.0,9.999e-05,2]
[342495780,1731929436346,-500.0,9.999e-05,2]
[342495781,1731929436356,-500.0,9.999e-05,2]
[342495782,1731929436368,-261.01872094,9.999e-05,2]
[342495783,1731929436378,-500.0,9.999e-05,2]
[342495784,1731929436387,-253.66,9.999e-05,2]
[342495785,1731929436397,-500.0,9.999e-05,2]
[342495786,1731929436406,-352.4,9.999e-05,2]
[342495787,1731929436415,-631.6462714,9.999e-05,2]
[342495788,1731929436425,-500.0,9.999e-05,2]
[342495789,1731929436434,-500.0,9.999e-05,2]
[342495790,1731929436443,-500.0,9.999e-05,2]
[342495791,1731929436453,-500.0,9.999e-05,2]
[342495792,1731929436462,-500.0,9.999e-05,2]
[342495793,1731929436471,-500.0,9.999e-05,2]
[342495794,1731929436480,-500.0,9.999e-05,2]
[342495795,1731929436490,-500.0,9.999e-05,2]
[342495796,1731929436500,-500.0,9.999e-05,2]
[342495797,1731929436509,-500.0,9.999e-05,2]
[342495798,1731929436518,-500.0,9.999e-05,2]
[342495799,1731929436528,-500.0,9.999e-05,2]
[342495800,1731929436537,-500.0,9.999e-05,2]
[342495801,1731929436546,-500.0,9.999e-05,2]
[342495802,1731929436555,-500.0,9.999e-05,2]
[342495803,1731929436564,-500.0,9.999e-05,2]
[342495804,1731929436575,-500.0,9.999e-05,2]
[342495805,1731929436584,-500.0,9.999e-05,2]
[342495806,1731929436593,-242.32,9.999e-05,2]
[342495807,1731929436603,-500.0,9.999e-05,2]
[342495808,1731929436612,-500.0,9.999e-05,2]
[342495809,1731929436621,-292.74,9.999e-05,2]
[342495810,1731929436631,-500.0,9.999e-05,2]
[342495811,1731929436640,-500.0,9.999e-05,2]
[342495812,1731929436649,-500.0,9.999e-05,2]
[342495813,1731929436658,-500.0,9.999e-05,2]
[342495814,1731929436667,-500.0,9.999e-05,2]
[342495815,1731929436678,-500.0,9.999e-05,2]
[342495816,1731929436689,-500.0,9.999e-05,2]
[342495817,1731929436698,-500.0,9.999e-05,2]
[342495818,1731929436708,-500.0,9.999e-05,2]
[342495819,1731929436717,-500.0,9.999e-05,2]
[342495820,1731929436726,-500.0,9.999e-05,2]
[342495821,1731929436736,-500.0,9.999e-05,2]
[342495822,1731929436747,-500.0,9.999e-05,2]
[342495823,1731929436756,-500.0,9.999e-05,2]
[342495824,1731929436766,-500.0,9.999e-05,2]
[342495825,1731929436775,-500.0,9.999e-05,2]
[342495826,1731929436785,-500.0,9.999e-05,2]
[342495827,1731929436794,-500.0,9.999e-05,2]
[342495828,1731929436803,-491.6,9.999e-05,2]
[342495829,1731929436812,-746.55,9.999e-05,2]
[342495830,1731929436825,-746.55,9.999e-05,2]
[342495831,1731929436834,-746.55,9.999e-05,2]
[342495832,1731929436845,-746.55,9.999e-05,2]
[342495833,1731929436854,-746.55,9.999e-05,2]
[342495834,1731929436863,-746.55,9.999e-05,2]
[342495835,1731929436872,-746.55,9.999e-05,2]
[342495836,1731929436881,-746.55,9.999e-05,2]
[342495837,1731929436891,-746.55,9.999e-05,2]
[342495838,1731929436900,-746.55,9.999e-05,2]
[342495839,1731929436910,-746.55,9.999e-05,2]
[342495840,1731929436919,-746.55,9.999e-05,2]
[342495841,1731929436928,-746.55,9.999e-05,2]
[342495842,1731929436937,-746.55,9.999e-05,2]
[342495843,1731929436947,-746.55,9.999e-05,2]
[342495844,1731929436956,-746.55,9.999e-05,2]
[342495845,1731929436965,-746.55,9.999e-05,2]
[342495846,1731929436974,-746.55,9.999e-05,2]
[342495847,1731929436984,-746.55,9.999e-05,2]
[342495848,1731929436994,-746.55,9.999e-05,2]
[342495849,1731929437003,-746.55,9.999e-05,2]
[342495850,1731929437013,-746.55,9.999e-05,2]
[342495851,1731929437022,-746.55,9.999e-05,2]
[342495852,1731929437032,-746.66012875,9.999e-05,2]
[342495853,1731929437041,-500.0,9.999e-05,2]
[342495854,1731929437050,-519.94,9.999e-05,2]
[342495855,1731929437059,-276.5844606,9.999e-05,2]
[342495856,1731929437070,-593.55085451,9.999e-05,2]
[342495857,1731929437079,-500.0,9.999e-05,2]
[342495858,1731929437088,-500.0,9.999e-05,2]
[342495859,1731929437097,-500.0,9.999e-05,2]
[342495860,1731929437106,-471.54,9.999e-05,2]
[342495861,1731929437116,-500.0,9.999e-05,2]
[342495862,1731929437126,-500.0,9.999e-05,2]
[342495863,1731929437136,-500.0,9.999e-05,2]
[342495864,1731929437145,-595.6,9.999e-05,2]
[342495865,1731929437155,-595.6,9.999e-05,2]
[342495866,1731929437164,-595.6,9.999e-05,2]
[342495867,1731929437174,-595.6,9.999e-05,2]
[342495868,1731929437184,-595.6,9.999e-05,2]
[342495869,1731929437193,-595.6,9.999e-05,2]
[342495870,1731929437202,-595.6,9.999e-05,2]
[342495871,1731929437211,-595.6,9.999e-05,2]
[342495872,1731929437221,-595.6,9.999e-05,2]
[342495873,1731929437230,-595.6,9.999e-05,2]
[342495874,1731929437239,-595.6,9.999e-05,2]
[342495875,1731929437248,-595.6,9.999e-05,2]
[342495876,1731929437258,-595.6,9.999e-05,2]
[342495877,1731929437267,-595.6,9.999e-05,2]
[342495878,1731929437276,-595.6,9.999e-05,2]
[342495879,1731929437288,-595.6,9.999e-05,2]
[342495880,1731929437298,-595.6,9.999e-05,2]
[342495881,1731929437308,-595.6,9.999e-05,2]
[342495882,1731929437317,-595.6,9.999e-05,2]
[342495883,1731929437328,-595.6,9.999e-05,2]
[342495884,1731929437338,-595.6,9.999e-05,2]
[342495885,1731929437347,-595.6,9.999e-05,2]
[342495886,1731929437356,-595.6,9.999e-05,2]
[342495887,1731929437367,-595.82000001,9.999e-05,2]
[342495888,1731929437376,-500.0,9.999e-05,2]
[342495889,1731929437386,-236.97638233,9.999e-05,2]
[342495890,1731929437396,-500.0,9.999e-05,2]
[342495891,1731929437405,-635.54127906,9.999e-05,2]
[342495892,1731929437416,-200.0,0.0001,2]
[342495893,1731929437425,-542.0,0.0001,2]
[342495894,1731929437434,-145287.17890044,0.0001,2]
[342495895,1731929437443,-4003.57587043,0.0001,2]
[342495896,1731929437454,-394700.23308816,0.0001,2]
[342495897,1731929437469,-465368.52203221,0.0001,2]
[342495898,1731929437509,-5305.36144738,0.0001,2]
[342495899,1731929437528,-485.12180667,0.0001,2]
[342495900,1731929437539,-3746.87890707,0.0001,2]
[342495901,1731929437550,-7146.55046988,0.0001,2]
[342495902,1731929437561,-9871.47288895,0.0001,2]
[342495911,1731929438049,-4229.84780564,0.0001,2]
[342495913,1731929438061,-6022.27422409,0.0001,2]
[342495915,1731929438074,-2153.98493412,0.0001,2]
[342495917,1731929438085,-2469.95220356,0.0001,2]
[342495919,1731929438096,-2007349.5609877,0.0001,2]
[342495921,1731929438107,-7519.46634177,0.0001,2]
[342495923,1731929438118,-448.53944592,0.0001,2]
[342495925,1731929438129,-13809.28531175,0.0001,2]
[342495927,1731929438141,-641.386212,0.0001,2]
[342495928,1731929438152,-13686.61607788,0.0001,2]
[342495929,1731929438163,-4983.26836,0.0001,2]
[342495930,1731929438174,-18243.84803999,0.0001,2]
[342495931,1731929438203,-4958.75,0.0001,2]
[342496059,1731929439627,-250.0,9.653e-05,2]
[342496061,1731929439637,-572.31492048,0.0001,2]
[342496064,1731929439649,-400.97017,0.0001,2]
[342496066,1731929439661,-434.112,0.0001,2]
[342496069,1731929439686,-619.23632032,0.0001,2]
[342496072,1731929439697,-311.02,0.0001,2]
[342496074,1731929439709,-306.00866,0.0001,2]
[342496076,1731929439720,-792.03264,0.0001,2]
[342496080,1731929439749,-4414.82904604,0.0001,2]
[342496082,1731929439760,-419.424857,0.0001,2]
[342496088,1731929439801,-236736.79999998,0.0001,2]
[342496093,1731929439848,-13649.40756778,0.0001,2]
[342496096,1731929439859,-4397.44214909,0.0001,2]
[342496098,1731929439870,-18394.61843082,0.0001,2]
[342496204,1731929442434,-500.0,9.999e-05,2]
[342496205,1731929442443,-186.85,9.999e-05,2]
[342496206,1731929442454,-688.0,0.0001,2]
[342496207,1731929442463,-12267.5,0.0001,2]
[342496208,1731929442474,-850.96210414,0.0001,2]
[342496209,1731929442486,-9107.27999999,0.0001,2]
[342496210,1731929442497,-446.91429972,0.0001,2]
[342496211,1731929442512,-3198.32887723,0.0001,2]
[342496212,1731929442523,-6434.37225391,0.0001,2]
[342496213,1731929442535,-5766.48127897,0.0001,2]
[342496214,1731929442546,-1322.80713391,0.0001,2]
[342496215,1731929442558,-3000.14749445,0.0001,2]
[342496216,1731929442569,-45118.62315233,0.0001,2]
[342496217,1731929442582,-6586.6627558,0.0001,2]
[342496218,1731929442593,-11968.05780887,0.0001,2]
[342496219,1731929442604,-21593.84561807,0.0001,2]
[342496220,1731929442615,-6465.86678814,0.0001,2]
[342496221,1731929442626,-8903.74174219,0.0001,2]
[342496222,1731929442637,-4186.76679144,0.0001,2]
[342496223,1731929442652,-2053435.34042322,0.0001,2]
[342496224,1731929442663,-579564.9120741,0.0001,2]
[342496225,1731929442674,-34088.23801673,0.0001,2]
[342496226,1731929442685,-2781.08274903,0.0001,2]
[342496227,1731929442696,-947.40643778,0.0001,2]
[342496228,1731929442707,-16535.4946002,0.0001,2]
[342496229,1731929442718,-384.34999965,0.0001,2]
[342496230,1731929442730,-1384.99813314,0.0001,2]
[342496231,1731929442742,-1217.50675063,0.0001,2]
[342496232,1731929442757,-3236.252,0.0001,2]
[342496377,1731929445458,-1992.82547722,9.993e-05,3]
[342496378,1731929445470,-15284.83970643,9.993e-05,3]
[342496379,1731929445481,-9831.76687634,9.993e-05,3]
[342496380,1731929445492,-9631.739698,9.993e-05,3]
[342496381,1731929445512,-15814.99359792,9.993e-05,3]
[342496382,1731929445523,-9309.10477623,9.993e-05,3]
[342496383,1731929445534,-9054.93913481,9.993e-05,3]
[342496384,1731929445545,-16098.05822187,9.993e-05,3]
[342496385,1731929445556,-1369.0189188,9.993e-05,3]
[342496386,1731929445568,-858.52689911,9.993e-05,3]
[342496387,1731929445582,-775.32745499,9.993e-05,3]
[342496388,1731929445593,-496.302152,9.993e-05,3]
[342496389,1731929445603,-1874.0697,9.993e-05,3]
[342496390,1731929445615,-1610.8089,9.993e-05,3]
[342496391,1731929445626,-3244.4123,9.993e-05,3]
[342496392,1731929445637,-1221.3,9.993e-05,3]
[342496393,1731929445648,-957.52,9.993e-05,3]
[342496394,1731929445659,-3900.75776183,9.993e-05,3]
[342496395,1731929445670,-25235.094,9.993e-05,3]
[342496396,1731929445681,-1763.60000004,9.993e-05,3]
[342496397,1731929445691,-371.88291753,9.993e-05,3]
[342496398,1731929445703,-1324.8,9.993e-05,3]
[342496399,1731929445714,-3648.8,9.993e-05,3]
[342496400,1731929445733,-302.0,9.993e-05,3]
[342496401,1731929445745,-406.69237922,9.993e-05,3]
[342496402,1731929445756,-9111.2862,9.993e-05,3]
[342496403,1731929445790,-1600.0,9.993e-05,3]
[342496405,1731929446252,600.0,9e-05,3]
[342496406,1731929448364,1200.0,9.1e-05,3]
[342496407,1731929450550,1900.0,9.2e-05,3]
[342496408,1731929452653,2500.0,9.3e-05,3]
[342496409,1731929454768,3100.0,9.4e-05,3]
[342496410,1731929456905,600.0,9.5e-05,3]
[342496411,1731929459073,600.0,9.6e-05,3]
[342496412,1731929461247,600.0,9.7e-05,3]
[342496413,1731929463423,600.0,9.8e-05,3]
[342496414,1731929465643,988.0,9.9e-05,3]
[342496422,1731930202648,2015.62,8.219e-05,2]
[342496423,1731930214554,529.228656,8.178e-05,2]
[342496426,1731930308487,150.0,8.466e-05,2]
[342496429,1731930461223,1000.0,8.433e-05,2]
[342496486,1731930636120,-300.0,8.503e-05,2]
[342496487,1731930636129,-1054.0,8.504e-05,2]
[342496488,1731930636139,-1054.0,8.504e-05,2]
[342496489,1731930636149,-1054.0,8.504e-05,2]
[342496490,1731930636159,-1054.0,8.504e-05,2]
[342496491,1731930636169,-1054.0,8.504e-05,2]
[342496492,1731930636179,-1054.0,8.504e-05,2]
[342496493,1731930636189,-572.92765,8.504e-05,2]
[342496494,1731930636199,-250.0,8.505e-05,2]